[Event "Faroese-ch Open 2025"]
[Site "Torshavn"]
[Date "2025.04.12"]
[Round "1.1"]
[White "Joensen, Sigurd"]
[Black "Staksberg, Luca Eydun"]
[Result "1-0"]
[Annotator "NA"]
[ECO "B01"]
[WhiteElo "1619"]
[BlackElo "1692"]
[PlyCount "92"]
[EventDate "2025.04.11"]
[EventType "swiss"]
[EventCountry "FAI"]
[SourceTitle "playchess.com"]
[Source "ChessBase"]
[SourceQuality "1"]
[TimeControl "40/5400+30:900+30"]

1. e4 {[%emt 0:00:04]} d5 {[%emt 0:00:08]} 2. exd5 {[%emt 0:00:17]} Nf6 {[%emt 0:00:16]} 3. Bc4 {[%emt 0:00:57]} e6 {[%emt 0:01:03]} 4. dxe6 {[%emt 0:03:11]} Bxe6 {[%emt 0:00:14]} 5. Qe2 {[%emt 0:01:20]} Qe7 {[%emt 0:00:51]} 6. Bxe6 {[%emt 0:00:35]} Qxe6 {[%emt 0:00:47]} 7. Qxe6+ {[%emt 0:01:53]} fxe6 {[%emt 0:00:16]} 8. Nf3 {[%emt 0:00:23]} Bd6 {[%emt 0:00:26]} 9. O-O {[%emt 0:01:08]} O-O {[%emt 0:00:20]} 10. Re1 {[%emt 0:00:44]} Re8 {[%emt 0:01:27]} 11. Nc3 {[%emt 0:02:16]} e5 {[%emt 0:01:11]} 12. d3 {[%emt 0:00:50]} Nc6 {[%emt 0:00:25]} 13. Bg5 {[%emt 0:01:55]} Nd4 {[%emt 0:03:02]} 14. Nxd4 {[%emt 0:02:05]} exd4 {[%emt 0:00:16]} 15. Bxf6 {[%emt 0:01:59]} gxf6 {[%emt 0:01:21]} 16. Ne4 {[%emt 0:03:29]} Kf7 {[%emt 0:01:38]} 17. Nxd6+ {[%emt 0:00:49]} cxd6 {[%emt 0:00:23]} 18. Kf1 {[%emt 0:08:01]} Re5 {[%emt 0:02:57]} 19. Re4 {[%emt 0:04:46]} Rc8 {[%emt 0:03:48]} 20. Rc1 {[%emt 0:01:21]} Rxe4 {[%emt 0:01:23]} 21. dxe4 {[%emt 0:00:15]} d3 {[%emt 0:01:00]} 22. c3 {[%emt 0:00:38]} Re8 {[%emt 0:05:03]} 23. Rd1 {[%emt 0:02:22]} Rxe4 {[%emt 0:00:36]} 24. Rxd3 {[%emt 0:00:26]} Ke6 {[%emt 0:00:52]} 25. Rh3 {[%emt 0:02:23]} Ra4 {[%emt 0:02:17]} 26. a3 {[%emt 0:03:31]} Ra5 {[%emt 0:01:58]} 27. Rxh7 {[%emt 0:01:17]} Rb5 {[%emt 0:00:51]} 28. b4 {[%emt 0:00:37]} a5 {[%emt 0:01:01]} 29. h4 {[%emt 0:01:13]} b6 {[%emt 0:02:51]} 30. g4 {[%emt 0:01:56]} Rd5 {[%emt 0:00:41]} 31. h5 {[%emt 0:03:40]} Rd3 {[%emt 0:01:06]} 32. Rc7 {[%emt 0:00:50]} Ke5 {[%emt 0:03:30]} 33. Kg2 {[%emt 0:06:14]} Kf4 {[%emt 0:01:18]} 34. Rc4+ {[%emt 0:05:10]} Kg5 {[%emt 0:02:42]} 35. f3 {[%emt 0:02:56]} b5 {[%emt 0:02:56]} 36. Rc7 {[%emt 0:02:06]} a4 {[%emt 0:00:22]} 37. Rg7+ {[%emt 0:10:16]} Kf4 {[%emt 0:04:02]} 38. h6 {[%emt 0:03:35]} Rxc3 {[%emt 0:02:50]} 39. h7 {[%emt 0:01:00]} Rc2+ {[%emt 0:01:39]} 40. Kh3 {[%emt 0:00:00]} Rc1 {[%emt 0:00:00]} 41. Rf7 {[%emt 0:07:42]} Rh1+ {[%emt 0:01:49]} 42. Kg2 {[%emt 0:00:11]} Rh4 {[%emt 0:01:45]} 43. Rxf6+ {[%emt 0:00:50]} Ke5 {[%emt 0:01:53]} 44. Rf5+ {[%emt 0:00:34]} Kd4 {[%emt 0:02:03]} 45. Rh5 {[%emt 0:00:12]} Rxh5 {[%emt 0:00:45]} 46. gxh5 {[%emt 0:00:00]} Kd5 {[%emt 0:02:01]} 1-0

[Event "Faroese-ch Open 2025"]
[Site "Torshavn"]
[Date "2025.04.12"]
[Round "1.2"]
[White "Al-Jay, Zaid"]
[Black "Simonsen, Johannes"]
[Result "0-1"]
[Annotator "NA"]
[ECO "C50"]
[WhiteElo "1689"]
[BlackElo "1608"]
[PlyCount "46"]
[EventDate "2025.04.11"]
[EventType "swiss"]
[EventCountry "FAI"]
[SourceTitle "playchess.com"]
[Source "ChessBase"]
[SourceQuality "1"]
[TimeControl "40/5400+30:900+30"]

1. e4 {[%emt 0:00:30]} e5 {[%emt 0:00:30]} 2. Nf3 {[%emt 0:00:30]} Nc6 {[%emt 0:00:30]} 3. Bc4 {[%emt 0:00:30]} Bc5 {[%emt 0:00:30]} 4. d3 {[%emt 0:00:00]} Nf6 {[%emt 0:00:00]} 5. Nc3 {[%emt 0:00:00]} h6 {[%emt 0:00:00]} 6. O-O {[%emt 0:00:00]} O-O {[%emt 0:00:00]} 7. Be3 {[%emt 0:00:00]} Bb6 {[%emt 0:00:00]} 8. Nd5 {[%emt 0:00:12]} d6 {[%emt 0:00:32]} 9. h3 {[%emt 0:01:53]} Be6 {[%emt 0:00:10]} 10. Bb3 {[%emt 0:00:37]} Bxd5 {[%emt 0:01:42]} 11. Bxb6 {[%emt 0:00:55]} Bxb3 {[%emt 0:01:16]} 12. Bxc7 {[%emt 0:01:25]} Qxc7 {[%emt 0:00:45]} 13. axb3 {[%emt 0:00:07]} a6 {[%emt 0:03:14]} 14. Nh4 {[%emt 0:00:23]} Ne7 {[%emt 0:00:52]} 15. c3 {[%emt 0:00:24]} d5 {[%emt 0:01:27]} 16. exd5 {[%emt 0:01:35]} Nfxd5 {[%emt 0:00:40]} 17. b4 {[%emt 0:00:25]} Rfd8 {[%emt 0:02:08]} 18. Qb3 {[%emt 0:00:16]} Nf4 {[%emt 0:02:06]} 19. d4 {[%emt 0:02:06]} exd4 {[%emt 0:00:15]} 20. cxd4 {[%emt 0:00:44]} Rxd4 {[%emt 0:01:02]} 21. Nf3 {[%emt 0:01:06]} Rd3 {[%emt 0:00:31]} 22. Rfc1 {[%emt 0:01:31]} Ne2+ {[%emt 0:00:35]} 23. Kf1 {[%emt 0:00:35]} Nxc1 {[%emt 0:00:25]} 0-1

[Event "Faroese-ch Open 2025"]
[Site "Torshavn"]
[Date "2025.04.12"]
[Round "1.3"]
[White "Morkore, Mortan"]
[Black "Rasmussen, Gunnleif"]
[Result "1-0"]
[Annotator "NA"]
[ECO "B01"]
[WhiteElo "1681"]
[BlackElo "1489"]
[PlyCount "83"]
[EventDate "2025.04.11"]
[EventType "swiss"]
[EventCountry "FAI"]
[SourceTitle "playchess.com"]
[Source "ChessBase"]
[SourceQuality "1"]
[TimeControl "40/5400+30:900+30"]

1. e4 {[%emt 0:00:23]} d5 {[%emt 0:00:09]} 2. exd5 {[%emt 0:00:06]} Qxd5 {[%emt 0:00:06]} 3. Nc3 {[%emt 0:00:05]} Qd8 {[%emt 0:00:08]} 4. Nf3 {[%emt 0:00:23]} Bf5 {[%emt 0:01:44]} 5. Bc4 {[%emt 0:01:57]} e6 {[%emt 0:00:51]} 6. d4 {[%emt 0:01:31]} Nf6 {[%emt 0:00:32]} 7. Bf4 {[%emt 0:03:46]} Bd6 {[%emt 0:00:18]} 8. Bg3 {[%emt 0:11:12]} c6 {[%emt 0:06:06]} 9. a3 {[%emt 0:02:30]} a5 {[%emt 0:06:21]} 10. Bxd6 {[%emt 0:08:36]} Qxd6 {[%emt 0:00:18]} 11. O-O {[%emt 0:02:00]} O-O {[%emt 0:00:19]} 12. Re1 {[%emt 0:00:03]} Nbd7 {[%emt 0:00:48]} 13. Ne5 {[%emt 0:07:04]} Rad8 {[%emt 0:13:56]} 14. Ba2 {[%emt 0:12:31]} Nb6 {[%emt 0:09:22]} 15. Ne2 {[%emt 0:03:39]} Ng4 {[%emt 0:18:39]} 16. c3 {[%emt 0:03:50]} Nxe5 {[%emt 0:03:37]} 17. dxe5 {[%emt 0:00:01]} Qxe5 {[%emt 0:04:44]} 18. Nd4 {[%emt 0:00:11]} Qf6 {[%emt 0:03:30]} 19. Qb3 {[%emt 0:03:26]} Rxd4 {[%emt 0:14:21]} 20. cxd4 {[%emt 0:00:39]} Qxd4 {[%emt 0:01:02]} 21. Red1 {[%emt 0:03:21]} Qc5 {[%emt 0:07:11]} 22. Rac1 {[%emt 0:00:18]} Qb5 {[%emt 0:02:34]} 23. Qxb5 {[%emt 0:00:25]} cxb5 {[%emt 0:00:21]} 24. Rc5 {[%emt 0:00:10]} Na4 {[%emt 0:04:18]} 25. Rxb5 {[%emt 0:00:34]} b6 {[%emt 0:00:37]} 26. Rd4 {[%emt 0:02:44]} Rc8 {[%emt 0:00:54]} 27. g4 {[%emt 0:02:14]} Bc2 {[%emt 0:00:36]} 28. Bb3 {[%emt 0:04:35]} Bxb3 {[%emt 0:00:33]} 29. Rxb3 {[%emt 0:00:02]} Nc5 {[%emt 0:00:29]} 30. Rxb6 {[%emt 0:00:03]} g5 {[%emt 0:00:24]} 31. Rc4 {[%emt 0:00:23]} Rd8 {[%emt 0:00:38]} 32. Rxc5 {[%emt 0:00:40]} Rd4 {[%emt 0:00:28]} 33. Rxg5+ {[%emt 0:00:38]} Kf8 {[%emt 0:00:32]} 34. h3 {[%emt 0:01:23]} a4 {[%emt 0:00:30]} 35. Rb4 {[%emt 0:00:26]} Rd3 {[%emt 0:00:32]} 36. Kg2 {[%emt 0:00:20]} h6 {[%emt 0:00:05]} 37. Ra5 {[%emt 0:00:49]} Kg7 {[%emt 0:00:22]} 38. Raxa4 {[%emt 0:00:38]} Kg6 {[%emt 0:00:28]} 39. Ra5 {[%emt 0:00:41]} f6 {[%emt 0:00:49]} 40. h4 {[%emt 0:00:00]} e5 {[%emt 0:00:00]} 41. Rb6 {[%emt 0:01:31]} e4 {[%emt 0:00:52]} 42. h5+ {[%emt 0:00:12]} 1-0

[Event "Faroese-ch Open 2025"]
[Site "Torshavn"]
[Date "2025.04.12"]
[Round "1.4"]
[White "Xin, Lisa J."]
[Black "Anthoniussen, Mannbjorn"]
[Result "0-1"]
[Annotator "NA"]
[ECO "A46"]
[WhiteElo "1562"]
[BlackElo "1689"]
[PlyCount "136"]
[EventDate "2025.04.11"]
[EventType "swiss"]
[EventCountry "FAI"]
[SourceTitle "playchess.com"]
[Source "ChessBase"]
[SourceQuality "1"]
[TimeControl "40/5400+30:900+30"]

1. d4 {[%emt 0:00:02]} d6 {[%emt 0:00:14]} 2. Nf3 {[%emt 0:00:09]} Nf6 {[%emt 0:01:01]} 3. Nbd2 {[%emt 0:00:52]} Bg4 {[%emt 0:03:16]} 4. e3 {[%emt 0:02:39]} Nbd7 {[%emt 0:02:34]} 5. Be2 {[%emt 0:00:55]} e6 {[%emt 0:05:25]} 6. b3 {[%emt 0:00:26]} Be7 {[%emt 0:01:24]} 7. Bb2 {[%emt 0:01:01]} O-O {[%emt 0:00:37]} 8. O-O {[%emt 0:00:13]} c6 {[%emt 0:03:22]} 9. c4 {[%emt 0:02:17]} d5 {[%emt 0:00:46]} 10. Rc1 {[%emt 0:01:49]} h6 {[%emt 0:10:41]} 11. h3 {[%emt 0:02:09]} Bh5 {[%emt 0:03:06]} 12. Bd3 {[%emt 0:08:09]} Bg6 {[%emt 0:07:33]} 13. Bxg6 {[%emt 0:01:34]} fxg6 {[%emt 0:00:13]} 14. Nh4 {[%emt 0:04:05]} g5 {[%emt 0:06:01]} 15. Ng6 {[%emt 0:00:00]} Rf7 {[%emt 0:01:00]} 16. Nxe7+ {[%emt 0:00:19]} Qxe7 {[%emt 0:00:38]} 17. cxd5 {[%emt 0:00:53]} exd5 {[%emt 0:01:28]} 18. Re1 {[%emt 0:04:14]} Raf8 {[%emt 0:04:31]} 19. Rf1 {[%emt 0:05:41]} Ne4 {[%emt 0:03:16]} 20. Nxe4 {[%emt 0:01:16]} Qxe4 {[%emt 0:00:10]} 21. Ba3 {[%emt 0:00:54]} Re8 {[%emt 0:01:52]} 22. Qc2 {[%emt 0:01:36]} Nf6 {[%emt 0:03:55]} 23. Qxe4 {[%emt 0:02:08]} Nxe4 {[%emt 0:00:11]} 24. f3 {[%emt 0:06:07]} Ng3 {[%emt 0:03:25]} 25. Rfe1 {[%emt 0:01:10]} Rf6 {[%emt 0:00:55]} 26. Kh2 {[%emt 0:01:08]} Nf5 {[%emt 0:00:33]} 27. Rc2 {[%emt 0:04:14]} Nxd4 {[%emt 0:01:50]} 28. Rd2 {[%emt 0:01:26]} Nf5 {[%emt 0:03:05]} 29. e4 {[%emt 0:02:10]} Rfe6 {[%emt 0:02:43]} 30. Rde2 {[%emt 0:02:43]} dxe4 {[%emt 0:02:45]} 31. Rxe4 {[%emt 0:00:42]} Kf7 {[%emt 0:01:52]} 32. Rxe6 {[%emt 0:00:23]} Rxe6 {[%emt 0:00:10]} 33. Rxe6 {[%emt 0:00:06]} Kxe6 {[%emt 0:00:07]} 34. g4 {[%emt 0:00:16]} Nd4 {[%emt 0:03:29]} 35. Kg2 {[%emt 0:00:48]} g6 {[%emt 0:02:45]} 36. Bc5 {[%emt 0:00:56]} Nb5 {[%emt 0:00:15]} 37. Bf8 {[%emt 0:06:57]} h5 {[%emt 0:00:35]} 38. gxh5 {[%emt 0:00:57]} gxh5 {[%emt 0:00:14]} 39. Kg3 {[%emt 0:01:44]} Kf5 {[%emt 0:02:16]} 40. Bh6 {[%emt 0:00:00]} Nc3 {[%emt 0:00:00]} 41. h4 {[%emt 0:07:11]} gxh4+ {[%emt 0:04:33]} 42. Kxh4 {[%emt 0:00:11]} Nxa2 {[%emt 0:00:07]} 43. Bd2 {[%emt 0:00:18]} c5 {[%emt 0:00:51]} 44. Kxh5 {[%emt 0:00:34]} a6 {[%emt 0:01:27]} 45. Kh4 {[%emt 0:00:30]} b5 {[%emt 0:00:09]} 46. Kg3 {[%emt 0:00:08]} c4 {[%emt 0:01:00]} 47. bxc4 {[%emt 0:00:31]} bxc4 {[%emt 0:00:10]} 48. Kf2 {[%emt 0:00:25]} c3 {[%emt 0:00:33]} 49. Bh6 {[%emt 0:00:21]} c2 {[%emt 0:00:13]} 50. Ke2 {[%emt 0:00:18]} c1=Q 51. Bxc1 {[%emt 0:00:09]} Nxc1+ {[%emt 0:00:16]} 52. Kd2 {[%emt 0:00:11]} Nb3+ {[%emt 0:01:52]} 53. Kc3 {[%emt 0:00:10]} Nc5 {[%emt 0:00:22]} 54. Kb4 {[%emt 0:00:23]} Nb7 {[%emt 0:00:12]} 55. Kc4 {[%emt 0:00:14]} a5 {[%emt 0:00:15]} 56. Kb5 {[%emt 0:00:13]} Kf4 {[%emt 0:00:14]} 57. Ka4 {[%emt 0:00:10]} Kxf3 {[%emt 0:00:06]} 58. Ka3 {[%emt 0:00:13]} Ke3 {[%emt 0:00:10]} 59. Ka2 {[%emt 0:00:05]} Kd3 {[%emt 0:00:08]} 60. Ka1 {[%emt 0:00:06]} Kc3 {[%emt 0:00:12]} 61. Kb1 {[%emt 0:00:25]} Kb3 {[%emt 0:00:50]} 62. Ka1 {[%emt 0:00:09]} Nc5 {[%emt 0:00:56]} 63. Kb1 {[%emt 0:00:06]} Ne6 {[%emt 0:00:08]} 64. Ka1 {[%emt 0:00:08]} Nd4 {[%emt 0:00:11]} 65. Kb1 {[%emt 0:00:24]} a4 {[%emt 0:00:09]} 66. Ka1 {[%emt 0:00:06]} a3 {[%emt 0:00:15]} 67. Kb1 {[%emt 0:00:05]} a2+ {[%emt 0:00:07]} 68. Ka1 {[%emt 0:00:08]} Nc2# {[%emt 0:00:07]} 0-1

[Event "Faroese-ch Open 2025"]
[Site "Torshavn"]
[Date "2025.04.12"]
[Round "1.5"]
[White "Al-Jay, Zaid"]
[Black "Simonsen, Johannes"]
[Result "1/2-1/2"]
[Annotator "NA"]
[ECO "C45"]
[WhiteElo "1689"]
[BlackElo "1608"]
[PlyCount "98"]
[EventDate "2025.04.11"]
[EventType "swiss"]
[EventCountry "FAI"]
[SourceTitle "playchess.com"]
[Source "ChessBase"]
[SourceQuality "1"]
[TimeControl "40/5400+30:900+30"]

1. e4 {[%emt 0:00:07]} e5 {[%emt 0:00:13]} 2. Nf3 {[%emt 0:00:25]} Nc6 {[%emt 0:00:16]} 3. d4 {[%emt 0:00:27]} exd4 {[%emt 0:00:18]} 4. Nxd4 {[%emt 0:00:12]} Bb4+ {[%emt 0:00:15]} 5. c3 {[%emt 0:00:56]} Bc5 {[%emt 0:00:14]} 6. Be3 {[%emt 0:06:54]} Bb6 {[%emt 0:00:32]} 7. Qg4 {[%emt 0:06:02]} Qf6 {[%emt 0:01:01]} 8. Nf5 {[%emt 0:04:03]} d6 {[%emt 0:01:12]} 9. Qxg7 {[%emt 0:01:46]} Bxf5 {[%emt 0:01:05]} 10. Qxf6 {[%emt 0:00:23]} Nxf6 {[%emt 0:00:12]} 11. exf5 {[%emt 0:01:19]} Kd7 {[%emt 0:02:16]} 12. Bxb6 {[%emt 0:01:55]} axb6 {[%emt 0:00:20]} 13. f3 {[%emt 0:06:09]} Rhe8+ {[%emt 0:01:58]} 14. Kf2 {[%emt 0:00:29]} h5 {[%emt 0:08:05]} 15. h3 {[%emt 0:00:42]} Re5 {[%emt 0:00:08]} 16. g4 {[%emt 0:03:05]} hxg4 {[%emt 0:08:09]} 17. hxg4 {[%emt 0:00:40]} Na5 {[%emt 0:00:10]} 18. Na3 {[%emt 0:02:07]} Rae8 {[%emt 0:01:16]} 19. Bb5+ {[%emt 0:03:22]} c6 {[%emt 0:00:17]} 20. Bd3 {[%emt 0:02:39]} b5 {[%emt 0:00:55]} 21. Rae1 {[%emt 0:01:31]} Nd5 {[%emt 0:00:55]} 22. Rxe5 {[%emt 0:01:09]} dxe5 {[%emt 0:00:20]} 23. Rh7 {[%emt 0:01:40]} Ke7 {[%emt 0:01:33]} 24. g5 {[%emt 0:11:56]} Rf8 {[%emt 0:07:53]} 25. Nb1 {[%emt 0:12:35]} Nf4 {[%emt 0:01:56]} 26. Bf1 {[%emt 0:01:03]} Nc4 {[%emt 0:00:41]} 27. Bxc4 {[%emt 0:02:43]} bxc4 {[%emt 0:00:10]} 28. Ke3 {[%emt 0:05:23]} b5 {[%emt 0:00:55]} 29. b3 {[%emt 0:03:01]} cxb3 {[%emt 0:02:32]} 30. axb3 {[%emt 0:00:12]} Kd6 {[%emt 0:03:03]} 31. Nd2 {[%emt 0:01:42]} Nd5+ {[%emt 0:03:17]} 32. Kd3 {[%emt 0:00:55]} Ne7 {[%emt 0:00:58]} 33. Ke4 {[%emt 0:00:49]} Rg8 {[%emt 0:01:56]} 34. Rh6+ {[%emt 0:01:23]} Kd7 {[%emt 0:00:34]} 35. Kxe5 {[%emt 0:00:58]} Rxg5 {[%emt 0:00:16]} 36. Kf6 {[%emt 0:01:02]} Rxf5+ {[%emt 0:01:40]} 37. Kg7 {[%emt 0:00:39]} Rd5 {[%emt 0:02:37]} 38. Rh2 {[%emt 0:00:43]} Rf5 {[%emt 0:02:17]} 39. c4 {[%emt 0:00:35]} bxc4 {[%emt 0:03:12]} 40. Nxc4 {[%emt 0:00:00]} Ng6 {[%emt 0:00:00]} 41. Rh6 {[%emt 0:03:26]} Ke7 {[%emt 0:04:27]} 42. Nd2 {[%emt 0:01:10]} Ne5 {[%emt 0:03:27]} 43. Nc4 {[%emt 0:02:50]} Nxc4 {[%emt 0:03:07]} 44. bxc4 {[%emt 0:00:14]} Rxf3 {[%emt 0:00:07]} 45. Rxc6 {[%emt 0:00:07]} Rg3+ {[%emt 0:00:20]} 46. Kh6 {[%emt 0:00:39]} Rg6+ {[%emt 0:04:33]} 47. Rxg6 {[%emt 0:00:23]} fxg6 {[%emt 0:00:03]} 48. Kxg6 {[%emt 0:00:13]} Kd6 {[%emt 0:00:23]} 49. c5+ {[%emt 0:00:09]} Kxc5 {[%emt 0:00:48]} 1/2-1/2

[Event "Faroese-ch Open 2025"]
[Site "Torshavn"]
[Date "2025.04.12"]
[Round "1.6"]
[White "Joensen, Sigurd"]
[Black "Staksberg, Luca Eydun"]
[Result "0-1"]
[Annotator "NA"]
[ECO "A03"]
[WhiteElo "1619"]
[BlackElo "1692"]
[PlyCount "114"]
[EventDate "2025.04.11"]
[EventType "swiss"]
[EventCountry "FAI"]
[SourceTitle "playchess.com"]
[Source "ChessBase"]
[SourceQuality "1"]
[TimeControl "40/5400+30:900+30"]

1. f4 {[%emt 0:01:00]} d5 {[%emt 0:00:16]} 2. e3 {[%emt 0:01:17]} Nf6 {[%emt 0:01:55]} 3. Be2 {[%emt 0:01:27]} c5 {[%emt 0:04:29]} 4. Nf3 {[%emt 0:03:05]} Nc6 {[%emt 0:04:32]} 5. O-O {[%emt 0:02:04]} Bg4 {[%emt 0:02:54]} 6. d3 {[%emt 0:03:59]} Qc7 {[%emt 0:03:24]} 7. Ng5 {[%emt 0:06:33]} h6 {[%emt 0:08:33]} 8. Nf3 {[%emt 0:06:21]} O-O-O {[%emt 0:01:13]} 9. Bd2 {[%emt 0:02:48]} e6 {[%emt 0:03:56]} 10. a3 {[%emt 0:05:52]} Bd6 {[%emt 0:02:33]} 11. Qe1 {[%emt 0:02:46]} Bxf3 {[%emt 0:03:52]} 12. Bxf3 {[%emt 0:07:54]} e5 {[%emt 0:01:36]} 13. g3 {[%emt 0:06:07]} Rhe8 {[%emt 0:13:17]} 14. Qc1 {[%emt 0:05:30]} exf4 {[%emt 0:00:54]} 15. exf4 {[%emt 0:01:30]} Nd4 {[%emt 0:02:34]} 16. Qd1 {[%emt 0:04:14]} Qb6 {[%emt 0:04:45]} 17. b3 {[%emt 0:05:47]} c4 {[%emt 0:02:07]} 18. Kg2 {[%emt 0:04:28]} cxd3 {[%emt 0:02:57]} 19. cxd3 {[%emt 0:07:51]} Qxb3 {[%emt 0:02:11]} 20. Qxb3 {[%emt 0:03:33]} Nxb3 {[%emt 0:00:05]} 21. Ra2 {[%emt 0:00:46]} Nxd2 {[%emt 0:02:00]} 22. Rxd2 {[%emt 0:04:04]} Kb8 {[%emt 0:02:14]} 23. Rc1 {[%emt 0:04:13]} Rc8 {[%emt 0:01:52]} 24. Rdc2 {[%emt 0:01:54]} a6 {[%emt 0:03:04]} 25. Rxc8+ {[%emt 0:01:18]} Rxc8 {[%emt 0:00:21]} 26. Rxc8+ {[%emt 0:00:27]} Kxc8 {[%emt 0:00:01]} 27. Nc3 {[%emt 0:01:11]} Bxa3 {[%emt 0:01:58]} 28. Nxd5 {[%emt 0:00:34]} Nxd5 {[%emt 0:00:35]} 29. Bxd5 {[%emt 0:00:10]} f6 {[%emt 0:00:14]} 30. Kf3 {[%emt 0:00:41]} b5 {[%emt 0:01:04]} 31. Ke4 {[%emt 0:00:41]} Kd7 {[%emt 0:01:05]} 32. d4 {[%emt 0:00:46]} Bb2 {[%emt 0:01:39]} 33. Bb3 {[%emt 0:01:20]} a5 {[%emt 0:01:36]} 34. Kd5 {[%emt 0:01:19]} Ba3 {[%emt 0:02:07]} 35. Ba2 {[%emt 0:00:45]} a4 {[%emt 0:00:47]} 36. Bb1 {[%emt 0:00:43]} Bd6 {[%emt 0:01:36]} 37. Bd3 {[%emt 0:00:47]} Ke7 {[%emt 0:02:08]} 38. Bxb5 {[%emt 0:00:18]} a3 {[%emt 0:00:02]} 39. Bc4 {[%emt 0:00:48]} f5 {[%emt 0:02:18]} 40. Bb3 {[%emt 0:00:00]} g5 {[%emt 0:00:00]} 41. fxg5 {[%emt 0:04:01]} hxg5 {[%emt 0:05:48]} 42. Ba2 {[%emt 0:02:24]} g4 {[%emt 0:02:25]} 43. Bb3 {[%emt 0:03:40]} Bb8 {[%emt 0:03:03]} 44. Ba2 {[%emt 0:00:52]} Kf6 {[%emt 0:01:16]} 45. Bb3 {[%emt 0:00:28]} f4 {[%emt 0:01:06]} 46. gxf4 {[%emt 0:02:52]} Bxf4 {[%emt 0:00:04]} 47. Ke4 {[%emt 0:00:32]} Bxh2 {[%emt 0:00:30]} 48. Ke3 {[%emt 0:00:45]} Kg5 {[%emt 0:01:27]} 49. Kf2 {[%emt 0:00:54]} Bc7 {[%emt 0:00:25]} 50. Kg2 {[%emt 0:00:29]} Kf4 {[%emt 0:00:39]} 51. d5 {[%emt 0:00:15]} Ke3 {[%emt 0:00:26]} 52. Bc4 {[%emt 0:00:39]} Kd4 {[%emt 0:00:13]} 53. Ba2 {[%emt 0:00:49]} Kc3 {[%emt 0:00:31]} 54. Kf1 {[%emt 0:01:43]} Kb2 {[%emt 0:00:15]} 55. Bc4 {[%emt 0:00:10]} a2 {[%emt 0:00:11]} 56. Bxa2 {[%emt 0:00:31]} Kxa2 {[%emt 0:00:10]} 57. Kg2 {[%emt 0:00:16]} Kb3 {[%emt 0:02:28]} 0-1